[Event "II Duchamp Open 2018"]
[Site "Rio de Janeiro"]
[Date "2018.11.16"]
[Round "3"]
[White "Peixoto, Rudson Marinho"]
[Black "Campos, Alexandre Ferreira"]
[Result "0-1"]
[ECO "B01"]
[WhiteElo "2007"]
[BlackElo "2076"]
[Annotator "NA RC"]
[PlyCount "120"]
[EventDate "2018.11.14"]
[EventType "swiss"]
[EventCountry "BRA"]
[SourceTitle "playchess.com"]
[Source "ChessBase"]
[SourceQuality "1"]
[TimeControl "5400+30"]

{[%evp 8,111,50,49,58,40,64,39,78,70,62,60,62,39,83,34,20,23,31,46,85,66,89,73,104,104,135,60,100,48,67,-18,-23,-36,-23,-31,-15,-28,0,-7,0,-7,-33,-20,-16,-4,0,-80,-68,-137,-112,-218,-238,-230,-220,-347,-154,-151,-130,-187,-195,-284,-286,-280,-279,-302,-307,-318,-312,-372,-326,-437,-450,-500,-457,-445,-450,-581,-619,-1041,-1545,-1316,-559,-5289,-5954,-1197,-441,-29969,-381,-344,-388,-365,-377,-379,-453,-429,-455,-503,-528,-995,-697,-681,-864,-1155,-1271,-1310]} 1. e4 {[%emt 0:00:00]} d5 {[%emt 0:00:26]} 2. exd5 {[%emt 0:00:00]} Nf6 {[%emt 0:00:04]} 3. d4 {[%emt 0:01:03]} Nxd5 {[%emt 0:00:30]} 4. c4 {[%emt 0:00:16]} Nb6 {[%emt 0:00:04]} 5. Nf3 {[%emt 0:00:46] LiveBook: 394 Games} Bg4 {[%emt 0:01:01]} 6. Be2 {[%emt 0:00:15]} e6 {[%emt 0:00:18]} 7. O-O {[%emt 0:00:28] B01: Scandinavian Defence} c5 {[%emt 0:00:19]} (7... Be7 8. Nc3 O-O 9. Be3 Nc6 10. b3 Qc8 11. h3 Bf5 12. a4 Rd8 13. a5 Nd7 14. Qc1 Nb4 15. Ra4 c5 16. dxc5 Nd3 17. Bxd3 Bxd3 18. c6 {½-½ (83) Yeritsyan,A (2332)-Saulin,D (2376) Sochi 2018}) 8. Be3 {[%emt 0:01:10]} N8d7 {[%emt 0:03:37]} 9. Nc3 {[%emt 0:01:05]} Be7 $146 {[%emt 0:00:53]} ({Predecessor:} 9... Bxf3 10. Bxf3 Nxc4 11. Bf4 Bd6 12. Bxd6 Nxd6 13. dxc5 Nf5 14. Bxb7 Rb8 {1-0 (48) Krupica,P-Joklik,P Morava 1994}) 10. d5 {[%emt 0:04:24]} O-O {[%emt 0:01:40]} 11. Qb3 {[%emt 0:04:00]} exd5 {[%emt 0:14:59]} 12. cxd5 {[%emt 0:00:58]} c4 {[%emt 0:02:19]} 13. Qc2 {[%emt 0:04:03]} g6 {[%emt 0:01:05]} 14. Rfd1 {[%emt 0:03:23]} Bf5 {[%emt 0:05:43]} 15. Qd2 {[%emt 0:00:10]} Bc5 {[%emt 0:03:54]} 16. Nd4 {[%emt 0:00:21]} Qf6 {[%emt 0:02:01]} 17. h3 {[%emt 0:02:01]} (17. Nxf5 $16 Qxf5 18. Bxc5 Nxc5 19. Qd4) 17... Rfe8 {[%emt 0:10:45]} 18. Nxf5 {[%emt 0:00:48]} Qxf5 {[%emt 0:00:15]} 19. Bg4 {[%emt 0:04:04]} (19. Bd4 $14) 19... Bxe3 $1 {[%emt 0:05:08]} 20. fxe3 {[%emt 0:00:19]} Qe5 {[%emt 0:01:19]} 21. e4 {[%emt 0:01:14]} Nc5 {[%emt 0:02:02]} 22. Bf3 {[%emt 0:01:22]} Nd3 {[%emt 0:06:54]} 23. b3 {[%emt 0:08:40]} Qg3 {[%emt 0:04:41]} 24. bxc4 {[%emt 0:01:30]} Nf4 {[%emt 0:01:13]} 25. Qe1 {[%emt 0:05:26]} Nxh3+ {[%emt 0:01:22]} 26. Kf1 {[%emt 0:00:24]} Qf4 {[%emt 0:00:44]} 27. c5 {[%emt 0:07:10]} (27. Ne2 $11 {keeps the balance.} Qf6 28. Qc3 Qxc3 29. Nxc3) 27... Nc4 {[%emt 0:00:33]} 28. Rd3 {[%emt 0:00:34]} (28. d6 $142 Ne3+ 29. Ke2 Nxd1 30. Rxd1) 28... Ne5 {[%emt 0:05:50]} 29. Qe3 {[%emt 0:07:18]} (29. Rad1 $17 {keeps fighting.} Ng5 30. d6) 29... Nxd3 {[%emt 0:00:22]} 30. Qxd3 {[%emt 0:00:10]} Ng5 {[%emt 0:01:14]} 31. Rb1 {[%emt 0:05:26]} Nxf3 {[%emt 0:01:08]} (31... Rac8 $19 {has better winning chances.} 32. Ne2 Qh2) 32. Qxf3 {[%emt 0:02:11]} Qc7 {[%emt 0:02:04]} 33. Qf2 {[%emt 0:08:12]} (33. Qf6 $17) 33... Rac8 {[%emt 0:00:46]} 34. d6 {[%emt 0:00:22]} (34. Rb5 {was worth a try.} b6 35. c6) 34... Qxc5 {[%emt 0:00:57]} 35. d7 {[%emt 0:00:40]} Qxc3 {[%emt 0:00:58]} 36. Kg1 {[%emt 0:04:41]} b6 {[%emt 0:02:06]} ({But not} 36... Rxe4 37. dxc8=N Qxc8 38. Qxa7 $19) 37. dxc8=Q {[%emt 0:04:09]} Rxc8 {[%emt 0:00:27]} 38. Qf4 {[%emt 0:00:24]} Qd4+ {[%emt 0:00:40]} 39. Kh1 {[%emt 0:00:39]} Rc5 {[%emt 0:00:13]} 40. g4 {[%emt 0:01:16]} h5 {[%emt 0:00:34]} 41. Rf1 {[%emt 0:00:56]} Qd7 {[%emt 0:01:19]} 42. Rg1 {[%emt 0:00:52]} hxg4 {[%emt 0:00:26]} 43. Rxg4 {[%emt 0:00:37]} Qd1+ {[%emt 0:02:06]} 44. Kh2 {[%emt 0:02:45]} Rh5+ {[%emt 0:06:19]} 45. Kg2 {[%emt 0:01:27]} Qh1+ {[%emt 0:01:46]} 46. Kf2 {[%emt 0:00:27]} Qh2+ {[%emt 0:01:02]} (46... Rh2+ $142 47. Qxh2 Qxh2+ 48. Rg2 Qf4+ {[%mdl 64] Double Attack} 49. Ke1 Qxe4+ 50. Re2 Qf5) 47. Ke3 $2 {[%emt 0:00:18]} (47. Qxh2 $19 Rxh2+ 48. Ke3) 47... Qxf4+ $2 {[%emt 0:00:12]} (47... Rh3+ 48. Qf3 Rxf3+ 49. Kxf3 Qxa2) 48. Rxf4 {[%emt 0:01:28]} Rh3+ {[%emt 0:00:33]} 49. Kd4 {[%emt 0:00:19]} Rh2 {[%emt 0:00:23]} 50. Kd5 {[%emt 0:01:25]} Rxa2 {[%emt 0:00:12]} 51. e5 {[%emt 0:00:22]} Kg7 {[%emt 0:00:34]} 52. Re4 {[%emt 0:01:10]} g5 {[%emt 0:01:37]} 53. e6 {[%emt 0:00:25]} (53. Rc4 $142) 53... fxe6+ {[%emt 0:00:37]} 54. Kxe6 {[%emt 0:00:11]} Kg6 {[%emt 0:00:10]} 55. Re1 {[%emt 0:01:57]} g4 $19 {[%emt 0:00:09]} 56. Re5 {[%emt 0:00:51]} Ra5 {[%emt 0:00:10]} 57. Re1 {[%emt 0:00:41]} Kg5 {[%emt 0:00:06]} 58. Rg1 {[%emt 0:00:37]} Rf5 {[%emt 0:00:13]} 59. Rh1 {[%emt 0:00:26]} a5 {[%emt 0:00:22]} 60. Rh8 {[%emt 0:00:31]} Rb5 {[%emt 0:00:22]} 0-1

[Event "II Duchamp Open 2018"]
[Site "Rio de Janeiro"]
[Date "2018.11.17"]
[Round "4"]
[White "Menna Barreto, Felipe Kubiaki"]
[Black "Brito, Luismar"]
[Result "1-0"]
[ECO "A04"]
[WhiteElo "2342"]
[BlackElo "2349"]
[Annotator "NA"]
[PlyCount "93"]
[EventDate "2018.11.14"]
[EventType "swiss"]
[EventCountry "BRA"]
[SourceTitle "playchess.com"]
[Source "ChessBase"]
[SourceQuality "1"]
[TimeControl "5400+30"]

1. Nf3 {[%emt 0:00:00]} c5 {[%emt 0:00:26]} 2. c4 {[%emt 0:00:01]} Nc6 {[%emt 0:00:06]} 3. Nc3 {[%emt 0:00:21]} b6 {[%emt 0:00:07] A35: Symmetrical English: 2 Nc3 Nc6 3 Nf3} (3... g6 4. e3 Nf6 5. d4 cxd4 6. exd4 d5 7. cxd5 Nxd5 8. Qb3 Nxc3 9. Bc4 e6 10. bxc3 Bd7 11. Bb5 a6 12. Be2 Na5 13. Qb1 Rc8 14. O-O f6 15. c4 b6 16. c5 bxc5 17. dxc5 Bxc5 18. Bxa6 Rb8 {1-0 (34) Svidler,P (2756)-Shankland,S (2722) Hoogeveen 2018}) 4. e3 {[%emt 0:00:58]} Nf6 {[%emt 0:02:17]} 5. d4 {[%emt 0:00:30]} g6 {[%emt 0:01:24]} 6. d5 {[%emt 0:01:39]} Na5 {[%emt 0:00:24]} 7. e4 {[%emt 0:01:21]} d6 {[%emt 0:00:21]} 8. Be2 {[%emt 0:01:58]} Bg7 {[%emt 0:00:13]} 9. O-O {[%emt 0:00:14]} O-O {[%emt 0:00:08]} 10. Bd2 $146 {[%emt 0:02:35]} ({Predecessor:} 10. h3 Nd7 11. Bf4 Ne5 12. Nxe5 dxe5 13. Be3 f5 14. exf5 gxf5 {1-0 (30) Lang,Z (2246)-Lichtenstern,C (2181) Bayern 2015}) 10... Nd7 {[%emt 0:03:07]} 11. b3 {[%emt 0:03:20]} Ne5 {[%emt 0:06:34]} 12. Ne1 {[%emt 0:01:47]} f5 {[%emt 0:00:18]} 13. exf5 {[%emt 0:03:20]} Bxf5 {[%emt 0:02:01]} 14. Nf3 {[%emt 0:11:21]} Nxf3+ {[%emt 0:09:42]} 15. Bxf3 {[%emt 0:00:21]} a6 {[%emt 0:01:34]} 16. Qe2 {[%emt 0:04:16]} Ra7 {[%emt 0:01:00]} 17. Rae1 {[%emt 0:02:17]} h6 {[%emt 0:04:22]} 18. Bg4 {[%emt 0:11:44]} Kh7 {[%emt 0:00:23]} 19. h4 {[%emt 0:05:09]} Qd7 {[%emt 0:05:05]} 20. Bf3 {[%emt 0:02:02]} Qe8 {[%emt 0:02:39]} 21. Ne4 {[%emt 0:02:58]} Qf7 {[%emt 0:05:06]} 22. h5 {[%emt 0:06:09]} Be5 {[%emt 0:01:52]} 23. Ng3 {[%emt 0:03:51]} Qg7 {[%emt 0:01:49]} 24. Be4 {[%emt 0:05:43]} Rc7 {[%emt 0:04:54]} 25. hxg6+ {[%emt 0:01:51]} Bxg6 {[%emt 0:00:06]} 26. Nh5 {[%emt 0:00:37]} Qf7 {[%emt 0:00:17]} 27. Qe3 {[%emt 0:00:43]} Bg7 {[%emt 0:01:05]} 28. Nf4 {[%emt 0:00:28]} (28. Qh3 $142) 28... Qxf4 {[%emt 0:04:35]} 29. Qxf4 {[%emt 0:00:57]} Rxf4 {[%emt 0:00:04]} 30. Bxf4 {[%emt 0:00:35]} b5 {[%emt 0:00:31]} 31. Bd2 {[%emt 0:00:59]} b4 {[%emt 0:00:34]} 32. Bxg6+ {[%emt 0:00:28]} Kxg6 {[%emt 0:00:04]} 33. Re6+ {[%emt 0:00:52]} Bf6 {[%emt 0:00:09]} 34. g4 {[%emt 0:02:11]} Nb7 {[%emt 0:00:14]} 35. f4 {[%emt 0:00:12]} Nd8 {[%emt 0:00:08]} 36. Re4 {[%emt 0:00:23]} a5 {[%emt 0:00:26]} 37. Kg2 {[%emt 0:00:42]} a4 {[%emt 0:00:12]} 38. g5 {[%emt 0:02:01]} ({Resist} 38. bxa4 Ra7 $18) 38... hxg5 {[%emt 0:00:47]} 39. fxg5 {[%emt 0:00:14]} Bg7 {[%emt 0:00:34]} 40. Rfe1 {[%emt 0:02:22]} Bf8 {[%emt 0:01:28]} 41. Bf4 {[%emt 0:04:10]} Nf7 {[%emt 0:02:43]} 42. Kf3 {[%emt 0:01:00]} Ra7 {[%emt 0:01:25]} 43. Kg4 {[%emt 0:01:26]} axb3 {[%emt 0:00:42]} 44. axb3 {[%emt 0:00:02]} Ra2 {[%emt 0:00:11]} 45. Re6+ {[%emt 0:00:32]} Kg7 {[%emt 0:00:35]} 46. Kf5 {[%emt 0:01:00]} Rf2 $18 {[%emt 0:01:31]} 47. Rg6+ {[%emt 0:00:18]} 1-0

[Event "II Duchamp Open 2018"]
[Site "Rio de Janeiro"]
[Date "2018.11.17"]
[Round "4"]
[White "Rodi, Luis Ernesto"]
[Black "Lebredo Zaragoitia, Gerardo"]
[Result "1-0"]
[ECO "B41"]
[WhiteElo "2327"]
[BlackElo "2139"]
[Annotator "ChessBase"]
[PlyCount "43"]
[EventDate "2018.11.14"]
[EventType "swiss"]
[EventCountry "BRA"]
[SourceTitle "playchess.com"]
[Source "ChessBase"]
[SourceQuality "1"]
[TimeControl "5400+30"]

1. e4 {[%emt 0:00:00]} c5 {[%emt 0:00:04]} 2. Nf3 {[%emt 0:00:00]} e6 {[%emt 0:00:57]} 3. d4 {[%emt 0:00:17]} cxd4 {[%emt 0:00:11]} 4. Nxd4 {[%emt 0:00:05]} a6 {[%emt 0:00:29]} 5. c4 {[%emt 0:00:45]} Nf6 {[%emt 0:01:03]} 6. Nc3 {[%emt 0:00:09]} Qc7 {[%emt 0:01:30]} 7. Be2 {[%emt 0:00:19]} Bb4 {[%emt 0:01:37]} 8. Nc2 {[%emt 0:00:15]} Bxc3+ {[%emt 0:19:44]} 9. bxc3 {[%emt 0:00:33]} Nc6 {[%emt 0:08:20]} 10. f3 {[%emt 0:00:36]} Qe5 {[%emt 0:09:08]} 11. O-O {[%emt 0:03:22]} Qxc3 {[%emt 0:13:47]} 12. Ba3 {[%emt 0:33:34]} d5 {[%emt 0:24:39]} 13. exd5 exd5 14. cxd5 {[%emt 0:07:03]} Nxd5 {[%emt 0:01:20]} 15. Qxd5 {[%emt 0:00:59]} Qxc2 {[%emt 0:00:12]} 16. Bd3 {[%emt 0:21:48]} Qc3 {[%emt 0:01:15]} 17. Rae1+ {[%emt 0:01:14]} Be6 {[%emt 0:00:38]} 18. Bc5 {[%emt 0:00:36]} Ne7 {[%emt 0:02:25]} 19. Qd6 {[%emt 0:03:21]} O-O {[%emt 0:01:09]} 20. Rc1 {[%emt 0:00:13]} Qa5 {[%emt 0:08:35]} 21. Qxe7 {[%emt 0:00:27]} Rac8 {[%emt 0:02:35]} 22. Qh4 {[%emt 0:01:12]} 1-0

[Event "II Duchamp Open 2018"]
[Site "Rio de Janeiro"]
[Date "2018.11.17"]
[Round "4"]
[White "Guimaraes, Diogo Duarte"]
[Black "Almeida, Gianluca Jorio"]
[Result "0-1"]
[ECO "B43"]
[WhiteElo "2272"]
[BlackElo "2109"]
[Annotator "ChessBase"]
[PlyCount "70"]
[EventDate "2018.11.14"]
[EventType "swiss"]
[EventCountry "BRA"]
[SourceTitle "playchess.com"]
[Source "ChessBase"]
[SourceQuality "1"]
[TimeControl "5400+30"]

1. e4 {[%emt 0:26:13]} c5 {[%emt 0:00:00]} 2. Nf3 {[%emt 0:00:03]} e6 {[%emt 0:00:00]} 3. d4 {[%emt 0:00:15]} cxd4 {[%emt 0:00:00]} 4. Nxd4 {[%emt 0:00:03]} a6 {[%emt 0:00:00]} 5. Nc3 {[%emt 0:00:12]} Qc7 {[%emt 0:00:00]} 6. Be3 {[%emt 0:00:27]} Nf6 {[%emt 0:00:30]} 7. Bd3 {[%emt 0:04:32]} Bb4 {[%emt 0:03:49]} 8. O-O {[%emt 0:00:04]} O-O {[%emt 0:03:05]} 9. Qf3 {[%emt 0:08:28]} d6 {[%emt 0:02:58]} 10. Na4 {[%emt 0:03:40]} Nbd7 {[%emt 0:06:38]} 11. a3 {[%emt 0:00:57]} Bc5 {[%emt 0:00:32]} 12. b4 {[%emt 0:08:32]} Bxd4 {[%emt 0:17:08]} 13. Bxd4 {[%emt 0:00:04]} b5 {[%emt 0:00:11]} 14. Bxf6 {[%emt 0:06:00]} Nxf6 {[%emt 0:01:09]} 15. e5 {[%emt 0:01:34]} Bb7 {[%emt 0:02:55]} 16. Qg3 {[%emt 0:03:12]} dxe5 {[%emt 0:00:25]} 17. Nc5 {[%emt 0:00:02]} Bd5 {[%emt 0:03:25]} 18. Rae1 {[%emt 0:00:30]} Nh5 {[%emt 0:18:40]} 19. Qxe5 {[%emt 0:08:21]} Qxe5 {[%emt 0:00:07]} 20. Rxe5 {[%emt 0:00:04]} Nf4 {[%emt 0:00:14]} 21. Be4 {[%emt 0:07:22]} Rfd8 {[%emt 0:10:43]} 22. g3 {[%emt 0:00:50]} Ne2+ {[%emt 0:05:08]} 23. Kg2 {[%emt 0:00:04]} Nc3 {[%emt 0:00:33]} 24. Bxd5 {[%emt 0:01:05]} Rxd5 {[%emt 0:03:40]} 25. Re3 {[%emt 0:00:37]} Nd1 {[%emt 0:01:16]} 26. Rb3 {[%emt 0:03:56]} a5 {[%emt 0:02:26]} 27. Kf3 {[%emt 0:03:36]} a4 {[%emt 0:03:14]} 28. Rd3 {[%emt 0:00:44]} Nb2 {[%emt 0:02:13]} 29. Rxd5 {[%emt 0:00:23]} exd5 {[%emt 0:00:00]} 30. Ra1 {[%emt 0:01:49]} Nc4 {[%emt 0:00:39]} 31. Ke2 {[%emt 0:01:35]} Kf8 {[%emt 0:00:51]} 32. Kd3 {[%emt 0:00:06]} Ke7 {[%emt 0:00:47]} 33. Kd4 {[%emt 0:00:39]} Kd6 {[%emt 0:00:09]} 34. Nd3 {[%emt 0:01:57]} Re8 {[%emt 0:00:46]} 35. h4 {[%emt 0:01:41]} Re4+ {[%emt 0:00:17]} 0-1

[Event "II Duchamp Open 2018"]
[Site "Rio de Janeiro"]
[Date "2018.11.17"]
[Round "4"]
[White "Teixeira, Ricardo Da Silva"]
[Black "Manzi, Luiz Antonio Bardar"]
[Result "0-1"]
[ECO "D63"]
[WhiteElo "2239"]
[BlackElo "2047"]
[Annotator "NA"]
[PlyCount "78"]
[EventDate "2018.11.14"]
[EventType "swiss"]
[EventCountry "BRA"]
[SourceTitle "playchess.com"]
[Source "ChessBase"]
[SourceQuality "1"]
[TimeControl "5400+30"]

1. c4 {[%emt 0:16:24]} e6 {[%emt 0:00:00]} 2. Nc3 {[%emt 0:02:21]} d5 {[%emt 0:01:48]} 3. d4 {[%emt 0:00:17]} Nf6 {[%emt 0:01:12]} 4. Bg5 {[%emt 0:01:14]} Be7 {[%emt 0:01:54]} 5. Nf3 {[%emt 0:00:41]} Nbd7 {[%emt 0:02:36]} 6. e3 {[%emt 0:00:20]} O-O {[%emt 0:03:08]} 7. Rc1 {[%emt 0:00:41]} a6 {[%emt 0:05:37]} 8. cxd5 {[%emt 0:04:28]} exd5 {[%emt 0:00:51]} 9. Bd3 {[%emt 0:00:03]} c5 {[%emt 0:06:37] D63: Queen's Gambit Declined: Classical: 7 Rc1} 10. O-O {[%emt 0:03:27]} c4 {[%emt 0:02:21]} 11. Bb1 {[%emt 0:00:08]} b5 {[%emt 0:00:35]} 12. Ne5 {[%emt 0:00:39]} Bb7 {[%emt 0:01:31]} 13. Qf3 $146 {[%emt 0:10:54]} ({Predecessor:} 13. Qc2 g6 14. f4 Ne4 15. Bh6 Re8 16. f5 Nxe5 17. dxe5 {0-1 (35) Gunina,V (2471)-Munguntuul,B (2410) Moscow 2011}) 13... b4 {[%emt 0:08:07]} 14. Qh3 {[%emt 0:10:18]} Re8 {[%emt 0:17:42]} 15. Nxd7 {[%emt 0:00:51]} Qxd7 {[%emt 0:00:06]} 16. Bf5 {[%emt 0:00:14]} Qc6 {[%emt 0:02:15]} 17. Bxf6 {[%emt 0:02:12]} Bxf6 {[%emt 0:00:50]} 18. Ne2 {[%emt 0:03:26]} g6 {[%emt 0:00:31]} 19. Bd7 {[%emt 0:00:25]} Qd6 {[%emt 0:01:04]} 20. Bxe8 {[%emt 0:00:19]} Rxe8 {[%emt 0:00:07]} 21. Qf3 {[%emt 0:04:35]} Kg7 {[%emt 0:00:23]} 22. b3 {[%emt 0:07:24]} c3 {[%emt 0:02:02]} 23. a3 {[%emt 0:00:02]} a5 {[%emt 0:00:45]} 24. axb4 {[%emt 0:00:19]} axb4 {[%emt 0:00:08]} 25. Ra1 {[%emt 0:00:02]} Ba6 {[%emt 0:00:27]} 26. Ra5 {[%emt 0:00:31]} ({White should play} 26. Rfd1 $16) 26... Qb6 {[%emt 0:04:37]} 27. Rfa1 {[%emt 0:02:53]} Bxe2 {[%emt 0:00:26]} 28. Qxe2 {[%emt 0:00:14]} Qxd4 {[%emt 0:00:07]} 29. Qb5 {[%emt 0:04:16]} Rxe3 {[%emt 0:00:44]} 30. fxe3 {[%emt 0:03:35]} Qxe3+ {[%emt 0:00:08]} 31. Kh1 {[%emt 0:00:19]} c2 {[%emt 0:00:27]} 32. Qf1 {[%emt 0:00:04]} Bxa1 {[%emt 0:01:28]} 33. Qxa1+ {[%emt 0:00:09]} Qc3 {[%emt 0:00:09]} 34. Qc1 {[%emt 0:03:19]} d4 {[%emt 0:00:06]} 35. h3 $19 {[%emt 0:04:04]} d3 {[%emt 0:00:18]} 36. Rd5 {[%emt 0:00:59]} Qxb3 {[%emt 0:00:06]} 37. Qg5 {[%emt 0:01:02]} Qxd5 {[%emt 0:00:18]} 38. Qxd5 {[%emt 0:00:02]} c1=Q+ {[%emt 0:00:15]} 39. Kh2 {[%emt 0:00:16]} Qc3 {[%emt 0:00:10]} 0-1

[Event "II Duchamp Open 2018"]
[Site "Rio de Janeiro"]
[Date "2018.11.17"]
[Round "4"]
[White "Viana, Dirceu"]
[Black "Souza Neves, Andrey M."]
[Result "1-0"]
[ECO "A13"]
[WhiteElo "2201"]
[BlackElo "2074"]
[Annotator "NA"]
[PlyCount "73"]
[EventDate "2018.11.14"]
[EventType "swiss"]
[EventCountry "BRA"]
[SourceTitle "playchess.com"]
[Source "ChessBase"]
[SourceQuality "1"]
[TimeControl "5400+30"]

1. c4 {[%emt 0:00:26]} e6 {[%emt 0:00:03]} 2. Nf3 {[%emt 0:01:46]} d5 {[%emt 0:00:26]} 3. e3 {[%emt 0:00:22]} Nf6 {[%emt 0:00:47]} 4. b3 {[%emt 0:00:30]} Be7 {[%emt 0:04:11]} 5. Bb2 {[%emt 0:00:03]} O-O {[%emt 0:00:15]} 6. Nc3 {[%emt 0:04:14]} c5 {[%emt 0:02:33]} 7. cxd5 {[%emt 0:01:38]} Nxd5 {[%emt 0:06:28]} 8. Nxd5 {[%emt 0:00:21] A13: English Opening: 1...e6} (8. h4 b6 9. Qb1 h6 10. g4 Bb7 11. Rh3 Nd7 12. g5 h5 13. Bd3 Nb4 14. Bh7+ Kh8 15. Be4 Nd5 {1-0 (24) Nepomniachtchi,I (2768)-Bacrot,E (2678) Batumi 2018}) 8... exd5 {[%emt 0:00:26]} 9. Be2 {[%emt 0:03:40]} d4 {[%emt 0:02:23]} 10. Qb1 {[%emt 0:15:34]} Bf6 {[%emt 0:06:08]} 11. O-O {[%emt 0:01:29]} Nc6 {[%emt 0:05:04]} 12. Bd3 $146 {[%emt 0:13:16]} ({Predecessor:} 12. Bb5 Bd7 13. Rc1 b6 14. Bd3 g6 15. exd4 cxd4 16. Be4 Rc8 17. d3 Re8 18. Rc4 b5 19. Rc2 Qb6 20. Qd1 Nb4 21. Rxc8 Rxc8 22. a3 Nc6 {½-½ (22) Makarichev,S (2500)-Speelman,J (2470) Hastings 1979}) 12... g6 {[%emt 0:03:45]} 13. Be4 {[%emt 0:00:10]} Bd7 {[%emt 0:02:44]} 14. Rc1 {[%emt 0:03:46]} Qb6 {[%emt 0:04:21]} 15. Qc2 {[%emt 0:08:31]} Be7 {[%emt 0:07:23]} 16. exd4 {[%emt 0:06:00]} cxd4 {[%emt 0:01:31]} 17. Bxc6 {[%emt 0:02:18]} Bxc6 {[%emt 0:04:15]} 18. Nxd4 {[%emt 0:03:14]} Bd5 {[%emt 0:12:59]} 19. Qc7 {[%emt 0:06:31]} Bf6 {[%emt 0:02:54]} 20. Qxb6 {[%emt 0:04:58]} axb6 {[%emt 0:00:47]} 21. Bc3 {[%emt 0:00:03]} Rfe8 {[%emt 0:06:07]} 22. Nb5 {[%emt 0:01:41]} Bxc3 {[%emt 0:06:42]} 23. dxc3 {[%emt 0:00:42]} Rad8 {[%emt 0:07:56]} 24. Re1 {[%emt 0:04:19]} Be6 {[%emt 0:02:51]} 25. Nd4 {[%emt 0:02:36]} Re7 {[%emt 0:01:53]} 26. Kf1 {[%emt 0:01:08]} Kg7 {[%emt 0:03:26]} 27. Rad1 {[%emt 0:01:52]} Ra8 {[%emt 0:02:38]} 28. a4 {[%emt 0:01:10]} b5 {[%emt 0:01:48]} 29. axb5 {[%emt 0:00:47]} Ra2 {[%emt 0:00:15]} 30. Nxe6+ {[%emt 0:02:39]} Rxe6 {[%emt 0:00:49]} 31. Rxe6 {[%emt 0:00:02]} fxe6 {[%emt 0:00:08]} 32. Rd7+ {[%emt 0:00:17]} Kf6 {[%emt 0:00:22]} 33. Rxh7 {[%emt 0:01:15]} e5 {[%emt 0:01:02]} 34. Rxb7 {[%emt 0:00:16]} e4 {[%emt 0:00:05]} 35. b6 {[%emt 0:01:44]} Ra1+ {[%emt 0:01:19]} 36. Ke2 {[%emt 0:00:21]} Ra2+ $18 {[%emt 0:00:27]} 37. Ke3 {[%emt 0:00:25]} 1-0

[Event "II Duchamp Open 2018"]
[Site "Rio de Janeiro"]
[Date "2018.11.17"]
[Round "4"]
[White "Souza, Wellington"]
[Black "Reis, Virginia Lagrange M"]
[Result "1/2-1/2"]
[ECO "A56"]
[WhiteElo "2120"]
[BlackElo "1750"]
[Annotator "NA"]
[PlyCount "58"]
[EventDate "2018.11.14"]
[EventType "swiss"]
[EventCountry "BRA"]
[SourceTitle "playchess.com"]
[Source "ChessBase"]
[SourceQuality "1"]
[TimeControl "5400+30"]

1. d4 {[%emt 0:00:00]} Nf6 {[%emt 0:00:00]} 2. c4 {[%emt 0:00:00]} c5 {[%emt 0:00:11]} 3. e3 {[%emt 0:00:06]} cxd4 {[%emt 0:00:24]} 4. exd4 {[%emt 0:00:03]} d5 {[%emt 0:00:25]} 5. cxd5 {[%emt 0:02:03]} Nxd5 {[%emt 0:00:35]} 6. Nc3 {[%emt 0:01:03]} Nc6 {[%emt 0:02:19]} 7. Bb5 {[%emt 0:02:41]} e6 {[%emt 0:04:20]} 8. Nf3 {[%emt 0:00:34]} Be7 {[%emt 0:03:07]} 9. O-O {[%emt 0:04:33]} O-O {[%emt 0:00:28]} 10. Bd3 {[%emt 0:07:15]} Nf6 {[%emt 0:03:53]} 11. a3 {[%emt 0:02:57]} b6 {[%emt 0:03:53]} 12. Be3 {[%emt 0:04:56]} Bb7 {[%emt 0:02:03]} 13. Rc1 {[%emt 0:01:09]} Rc8 {[%emt 0:01:22]} 14. Bb1 {[%emt 0:03:05]} Ba6 {[%emt 0:03:36]} 15. Re1 {[%emt 0:00:18]} Qd7 {[%emt 0:01:38]} 16. Qc2 {[%emt 0:04:06]} g6 {[%emt 0:02:28]} 17. Red1 {[%emt 0:01:12]} Rfd8 {[%emt 0:01:49]} 18. b4 {[%emt 0:03:57]} Bb7 {[%emt 0:02:13]} 19. Qe2 {[%emt 0:02:35]} Qe8 {[%emt 0:04:06]} 20. h3 {[%emt 0:01:11]} Rd7 {[%emt 0:01:56]} 21. Bd3 {[%emt 0:03:29]} Nd5 {[%emt 0:05:02]} 22. Ne4 {[%emt 0:03:28]} Nxe3 {[%emt 0:02:29]} 23. Qxe3 {[%emt 0:02:17]} Qd8 {[%emt 0:04:50]} 24. Bc4 {[%emt 0:05:13]} Kg7 {[%emt 0:05:29]} 25. Qc3 {[%emt 0:09:20]} Bf6 {[%emt 0:19:48]} 26. Nxf6 {[%emt 0:00:50]} Qxf6 {[%emt 0:00:04]} 27. Qe3 {[%emt 0:01:15]} Rcd8 {[%emt 0:04:20]} 28. Bb5 {[%emt 0:00:43]} Rd6 {[%emt 0:00:54]} 29. Bxc6 {[%emt 0:02:36]} Bxc6 {[%emt 0:02:41]} 1/2-1/2